fUSD/lending_fUSD_20240429
["ID","MTS","AMOUNT","RATE_DAILY","PERIOD"]
[324927547,1714426238501,-500.0,0.00011572,2]
[324927549,1714426238510,-70944.1694,0.00011804,2]
[324927551,1714426238519,-1955.0239,0.00011804,2]
[324927553,1714426238528,-563.6279,0.00011804,2]
[324927555,1714426238537,-10463.9914,0.00011804,2]
[324927557,1714426238546,-26337.353,0.00011804,2]
[324927559,1714426238555,-1372.94266704,0.00011812,2]
[324927561,1714426238564,-528.71344429,0.00011813,2]
[324927563,1714426238573,-500.0,0.00011846,2]
[324927565,1714426238582,-500.0,0.00011846,2]
[324927566,1714426238592,-1743.74,0.00011846,2]
[324927568,1714426238601,-500.0,0.00011846,2]
[324927570,1714426238611,-536.28,0.00011846,2]
[324927572,1714426238620,-500.0,0.00011846,2]
[324927574,1714426238629,-708.32,0.00011846,2]
[324927577,1714426238638,-674.31,0.00011846,2]
[324927578,1714426238648,-500.0,0.00011846,2]
[324927581,1714426238657,-500.0,0.00011846,2]
[324927583,1714426238668,-594.61758601,0.00011846,2]
[324927585,1714426238677,-777.47,0.00011846,2]
[324927586,1714426238687,-613.71,0.00011846,2]
[324927588,1714426238697,-505.36,0.00011846,2]
[324927590,1714426238706,-699.42,0.00011846,2]
[324927592,1714426238714,-500.0,0.00011846,2]
[324927594,1714426238723,-1113.99,0.00011846,2]
[324927596,1714426238733,-1054.51,0.00011846,2]
[324927598,1714426238742,-2351.8,0.00011846,2]
[324927600,1714426238753,-1313.75,0.00011846,2]
[324927602,1714426238764,-1074.3,0.00011846,2]
[324927604,1714426238773,-1024.31,0.00011846,2]
[324927606,1714426238783,-500.0,0.00011846,2]
[324927609,1714426238793,-758.16,0.00011846,2]
[324927611,1714426238802,-905.43,0.00011846,2]
[324927612,1714426238812,-987.71,0.00011846,2]
[324927613,1714426238821,-879.29,0.00011846,2]
[324927614,1714426238833,-500.0,0.00011846,2]
[324927615,1714426238841,-569.28,0.00011846,2]
[324927616,1714426238851,-798.61,0.00011846,2]
[324927617,1714426238861,-2277.69,0.00011846,2]
[324927618,1714426238871,-1762.1,0.00011846,2]
[324927619,1714426238879,-2510.59,0.00011846,2]
[324927620,1714426238889,-2295.63,0.00011846,2]
[324927621,1714426238899,-612.14,0.00011846,2]
[324927623,1714426238909,-2645.36,0.00011846,2]
[324927625,1714426238918,-173.45884608,0.00011846,2]
[324927627,1714426238928,-468.03,0.00011846,2]
[324927629,1714426238937,-876.5,0.00011846,2]
[324927631,1714426238946,-500.0,0.00011846,2]
[324927633,1714426238955,-339.89896657,0.00011894,2]
[324927635,1714426238964,-500.0,0.00011902,2]
[324927637,1714426238973,-155.14585425,0.00011902,2]
[324927639,1714426238983,-20805.94351046,0.00011902,2]
[324927641,1714426238992,-155.0,0.00011902,2]
[324927643,1714426239002,-676.23,0.00011902,2]
[324927645,1714426239011,-4458.5675,0.00011902,2]
[324927647,1714426239021,-4418.4119,0.00011902,2]
[324927649,1714426239030,-854.9439,0.00011902,2]
[324927651,1714426239039,-240.51,0.00011902,2]
[324927653,1714426239048,-739.75927914,0.00011903,3]
[324927655,1714426239058,-500.0,0.00011904,2]
[324927657,1714426239067,-500.0,0.00011904,2]
[324927659,1714426239076,-500.0,0.00011904,2]
[324927661,1714426239085,-178.22,0.00011904,2]
[324927663,1714426239094,-642.86,0.00011904,2]
[324927665,1714426239105,-564.06618754,0.00011904,2]
[324927667,1714426239114,-500.0,0.00011904,2]
[324927669,1714426239124,-500.0,0.00011904,2]
[324927671,1714426239132,-151.0,0.00011904,2]
[324927673,1714426239141,-151.0,0.00011904,2]
[324927675,1714426239150,-500.0,0.00011904,2]
[324927677,1714426239160,-151.0,0.00011904,2]
[324927679,1714426239169,-581.25,0.00011904,2]
[324927681,1714426239178,-151.0,0.00011904,2]
[324927683,1714426239187,-500.0,0.00011904,2]
[324927685,1714426239196,-151.0,0.00011904,2]
[324927687,1714426239205,-500.0,0.00011904,2]
[324927689,1714426239214,-777.11,0.00011904,2]
[324927692,1714426239223,-1108.04,0.00011904,2]
[324927694,1714426239233,-1012.8,0.00011904,2]
[324927696,1714426239242,-500.0,0.00011904,2]
[324927698,1714426239251,-500.0,0.00011904,2]
[324927700,1714426239260,-177.87336071,0.00011904,2]
[324927702,1714426239269,-913.15,0.00011904,2]
[324927704,1714426239278,-500.0,0.00011904,2]
[324927706,1714426239288,-592.01,0.00011904,2]
[324927708,1714426239297,-500.0,0.00011904,2]
[324927709,1714426239306,-500.0,0.00011904,2]
[324927712,1714426239316,-1608.13,0.00011904,2]
[324927716,1714426239325,-635.11,0.00011904,2]
[324927719,1714426239334,-500.0,0.00011904,2]
[324927722,1714426239343,-1263.57,0.00011904,2]
[324927725,1714426239352,-816.78,0.00011904,2]
[324927728,1714426239361,-542.27,0.00011904,2]
[324927731,1714426239371,-619.89,0.00011904,2]
[324927734,1714426239379,-500.0,0.00011904,2]
[324927737,1714426239388,-500.0,0.00011904,2]
[324927739,1714426239397,-815.42,0.00011904,2]
[324927741,1714426239406,-1966.55,0.00011904,2]
[324927743,1714426239415,-891.94,0.00011904,2]
[324927745,1714426239423,-1801.77,0.00011904,2]
[324927747,1714426239432,-1034.24,0.00011904,2]
[324927749,1714426239441,-1174.22,0.00011904,2]
[324927750,1714426239450,-500.0,0.00011904,2]
[324927752,1714426239459,-315906.48379202,0.00011904,2]
[324927753,1714426239472,-393.13811276,0.00011904,2]
[324927754,1714426239483,-2350.75626598,0.00011904,2]
[324927755,1714426239494,-411.93521121,0.00011904,2]
[324927756,1714426239510,-465548.99771803,0.00011904,2]
[324927758,1714426239519,-528.71344429,0.00011912,2]
[324927760,1714426239528,-192.19193026,0.00011913,2]
[324927762,1714426239537,-403.909,0.00011973,2]
[324927764,1714426239546,-4584.3685979,0.00011992,2]
[324927766,1714426239555,-34028.92307061,0.00011999,2]
[324927768,1714426239563,-151.0,0.00012002,2]
[324927770,1714426239573,-155.25921222,0.00012002,2]
[324927772,1714426239582,-305.60617377,0.00012002,2]
[324927774,1714426239592,-213.67650766,0.00012002,2]
[324927776,1714426239601,-289.83775221,0.00012002,2]
[324927778,1714426239610,-198.02896439,0.00012002,2]
[324927780,1714426239619,-171.36109469,0.00012002,2]
[324927782,1714426239628,-160.685099,0.00012002,2]
[324927784,1714426239637,-208.58192749,0.00012002,2]
[324927786,1714426239646,-306.92630382,0.00012002,2]
[324927788,1714426239656,-207.21030234,0.00012002,2]
[324927790,1714426239666,-308.65635205,0.00012002,2]
[324927792,1714426239675,-163.88340812,0.00012002,2]
[324927794,1714426239683,-155.80892173,0.00012002,2]
[324927796,1714426239693,-590.72620326,0.00012002,2]
[324927798,1714426239702,-205.7728251,0.00012002,2]
[324927800,1714426239711,-157.37702182,0.00012002,2]
[324927802,1714426239720,-156.22891115,0.00012002,2]
[324927803,1714426239729,-157.13236333,0.00012002,2]
[324927805,1714426239738,-1722.95125171,0.00012002,2]
[324927807,1714426239750,-216.84655625,0.00012002,2]
[324927809,1714426239761,-157.84899631,0.00012002,2]
[324927811,1714426239770,-158.49372764,0.00012002,2]
[324927813,1714426239779,-259.32312542,0.00012002,2]
[324927815,1714426239789,-200.77586591,0.00012002,2]
[324927817,1714426239798,-277.78803159,0.00012002,2]
[324927819,1714426239808,-211.35577984,0.00012002,2]
[324927821,1714426239817,-175.54408362,0.00012002,2]
[324927823,1714426239828,-155.11864282,0.00012002,2]
[324927825,1714426239837,-1585.03652121,0.00012002,2]
[324927827,1714426239847,-214.00741216,0.00012002,2]
[324927828,1714426239855,-245.98289932,0.00012002,2]
[324927829,1714426239865,-199.21433165,0.00012002,2]
[324927830,1714426239874,-194.01529019,0.00012002,2]
[324927831,1714426239884,-155.67999217,0.00012002,2]
[324927832,1714426239893,-233.03801742,0.00012002,2]
[324927833,1714426239902,-185.81274971,0.00012002,2]
[324927834,1714426239913,-274.60892285,0.00012002,2]
[324927835,1714426239924,-262.16181551,0.00012002,2]
[324927836,1714426239933,-155.0,0.00012002,2]
[324927837,1714426239942,-161.7496139,0.00012002,2]
[324927838,1714426239951,-211.84497049,0.00012002,2]
[324927839,1714426239960,-194.90310928,0.00012002,2]
[324927840,1714426239969,-313.40476678,0.00012002,2]
[324927841,1714426239979,-79229.09279602,0.00012002,2]
[324927842,1714426239988,-155.79455094,0.00012002,2]
[324927843,1714426239997,-1351.89634566,0.00012002,2]
[324927845,1714426240007,-207.90792551,0.00012002,2]
[324927846,1714426240016,-3853.065023,0.00012002,2]
[324927847,1714426240027,-2628.47800925,0.00012002,2]
[324927848,1714426240037,-710.33944675,0.00012002,2]
[324927849,1714426240046,-215.79675141,0.00012003,2]
[324927850,1714426240056,-266.1273035,0.00012003,2]
[324927851,1714426240065,-172.43751058,0.00012003,2]
[324927852,1714426240074,-201.23398005,0.00012003,2]
[324927853,1714426240083,-155.0,0.00012003,2]
[324927854,1714426240092,-204.24863255,0.00012003,2]
[324927855,1714426240102,-151.0,0.00012004,2]
[324927856,1714426240112,-151.0,0.00012004,2]
[324927857,1714426240122,-500.0,0.00012004,2]
[324927858,1714426240131,-181.002982,0.00012004,2]
[324927859,1714426240140,-155.75671,0.00012004,2]
[324927860,1714426240150,-500.0,0.00012004,2]
[324927861,1714426240159,-500.0,0.00012004,2]
[324927862,1714426240169,-151.0,0.00012004,2]
[324927863,1714426240179,-979.65,0.00012004,2]
[324927864,1714426240189,-153.854454,0.00012004,2]
[324927865,1714426240198,-349.9506593,0.00012004,2]
[324927866,1714426240208,-500.0,0.00012004,2]
[324927867,1714426240217,-500.0,0.00012004,2]
[324927868,1714426240226,-151.0,0.00012004,2]
[324927869,1714426240235,-637.3,0.00012004,2]
[324927870,1714426240245,-585.91,0.00012004,2]
[324927871,1714426240255,-508.74,0.00012004,2]
[324927872,1714426240264,-151.0,0.00012004,2]
[324927873,1714426240274,-2084.53,0.00012004,2]
[324927874,1714426240283,-151.0,0.00012004,2]
[324927875,1714426240293,-151.0,0.00012004,2]
[324927876,1714426240302,-925.41,0.00012004,2]
[324927877,1714426240312,-500.0,0.00012004,2]
[324927878,1714426240322,-151.0,0.00012004,2]
[324927879,1714426240331,-613.3,0.00012004,2]
[324927880,1714426240340,-2584.05,0.00012004,2]
[324927881,1714426240349,-151.0,0.00012004,2]
[324927882,1714426240359,-341.1,0.00012004,2]
[324927883,1714426240368,-151.0,0.00012004,2]
[324927884,1714426240378,-500.0,0.00012004,2]
[324927885,1714426240389,-151.0,0.00012004,2]
[324927886,1714426240400,-151.0,0.00012004,2]
[324927887,1714426240410,-151.0,0.00012004,2]
[324927888,1714426240419,-524.19857863,0.00012004,2]
[324927889,1714426240428,-255.482516,0.00012004,2]
[324927890,1714426240437,-81134.9898,0.00012004,2]
[324927891,1714426240446,-1547.7811,0.00012004,2]
[324927892,1714426240455,-6787.6748,0.00012004,2]
[324927893,1714426240464,-528.71344429,0.00012011,2]
[324927894,1714426240473,-519.91916152,0.00012012,2]
[324927895,1714426240483,-167.17,0.00012033,2]
[324927896,1714426240492,-418.15,0.00012081,2]
[324927897,1714426240502,-151.0,0.00012087,2]
[324927898,1714426240512,-151.0,0.00012087,2]
[324927899,1714426240521,-151.0,0.00012087,2]
[324927900,1714426240532,-151.0,0.00012087,2]
[324927901,1714426240542,-151.0,0.00012087,2]
[324927902,1714426240552,-223.094322,0.00012087,2]
[324927903,1714426240561,-17564.87,0.00012087,2]
[324927904,1714426240572,-29999.99,0.00012087,2]
[324927905,1714426240582,-4985.59,0.00012087,2]
[324927906,1714426240591,-849.15,0.00012087,2]
[324927907,1714426240600,-19999.99,0.00012087,2]
[324927908,1714426240609,-528.71344429,0.00012109,2]
[324927909,1714426240618,-500.0,0.0001212,2]
[324927910,1714426240627,-500.0,0.0001212,2]
[324927911,1714426240636,-1743.74,0.0001212,2]
[324927912,1714426240645,-500.0,0.0001212,2]
[324927913,1714426240653,-536.28,0.0001212,2]
[324927914,1714426240662,-500.0,0.0001212,2]
[324927915,1714426240671,-708.32,0.0001212,2]
[324927916,1714426240680,-674.31,0.0001212,2]
[324927917,1714426240689,-500.0,0.0001212,2]
[324927918,1714426240698,-500.0,0.0001212,2]
[324927919,1714426240708,-777.47,0.0001212,2]
[324927920,1714426240717,-613.71,0.0001212,2]
[324927921,1714426240726,-505.36,0.0001212,2]
[324927922,1714426240735,-699.42,0.0001212,2]
[324927923,1714426240744,-500.0,0.0001212,2]
[324927924,1714426240755,-1113.99,0.0001212,2]
[324927925,1714426240765,-1054.51,0.0001212,2]
[324927926,1714426240774,-2351.8,0.0001212,2]
[324927927,1714426240784,-1313.75,0.0001212,2]
[324927928,1714426240795,-1074.3,0.0001212,2]
[324927929,1714426240805,-1024.31,0.0001212,2]
[324927930,1714426240815,-633.40363437,0.0001212,2]
[324927931,1714426240824,-758.16,0.0001212,2]
[324927932,1714426240835,-905.43,0.0001212,2]
[324927933,1714426240844,-987.71,0.0001212,2]
[324927934,1714426240854,-879.29,0.0001212,2]
[324927935,1714426240863,-500.0,0.0001212,2]
[324927936,1714426240872,-569.28,0.0001212,2]
[324927937,1714426240881,-798.61,0.0001212,2]
[324927938,1714426240890,-2277.69,0.0001212,2]
[324927939,1714426240899,-1762.1,0.0001212,2]
[324927940,1714426240908,-2510.59,0.0001212,2]
[324927941,1714426240918,-2295.63,0.0001212,2]
[324927942,1714426240927,-612.14,0.0001212,2]
[324927943,1714426240937,-2645.36,0.0001212,2]
[324927944,1714426240946,-876.5,0.0001212,2]
[324927945,1714426240955,-500.0,0.0001212,2]
[324927946,1714426240965,-2500.0,0.00012121,2]
[324927947,1714426240974,-500.0,0.00012178,2]
[324927948,1714426240983,-500.0,0.00012178,2]
[324927949,1714426240993,-214.85436674,0.00012178,2]
[324927950,1714426241002,-642.86,0.00012178,2]
[324927951,1714426241011,-500.0,0.00012178,2]
[324927952,1714426241021,-500.0,0.00012178,2]
[324927953,1714426241031,-500.0,0.00012178,2]
[324927954,1714426241040,-581.25,0.00012178,2]
[324927955,1714426241050,-500.0,0.00012178,2]
[324927956,1714426241059,-500.0,0.00012178,2]
[324927957,1714426241069,-777.11,0.00012178,2]
[324927958,1714426241079,-1108.04,0.00012178,2]
[324927959,1714426241088,-1012.8,0.00012178,2]
[324927960,1714426241097,-500.0,0.00012178,2]
[324927961,1714426241106,-500.0,0.00012178,2]
[324927962,1714426241115,-913.15,0.00012178,2]
[324927963,1714426241124,-500.0,0.00012178,2]
[324927964,1714426241134,-592.01,0.00012178,2]
[324927965,1714426241143,-404.68,0.00012178,2]
[324927966,1714426241152,-500.0,0.00012178,2]
[324927967,1714426241161,-1608.13,0.00012178,2]
[324927968,1714426241172,-500.0,0.00012178,2]
[324927969,1714426241181,-1263.57,0.00012178,2]
[324927970,1714426241190,-816.78,0.00012178,2]
[324927971,1714426241199,-542.27,0.00012178,2]
[324927972,1714426241209,-619.89,0.00012178,2]
[324927973,1714426241218,-500.0,0.00012178,2]
[324927974,1714426241227,-547.78,0.00012178,2]
[324927975,1714426241237,-815.42,0.00012178,2]
[324927976,1714426241245,-1966.55,0.00012178,2]
[324927977,1714426241256,-891.94,0.00012178,2]
[324927978,1714426241266,-1801.77,0.00012178,2]
[324927979,1714426241276,-1034.24,0.00012178,2]
[324927980,1714426241285,-1174.22,0.00012178,2]
[324927981,1714426241295,-500.0,0.00012178,2]
[324927982,1714426241305,-528.71344429,0.00012208,2]
[324927983,1714426241315,-500.0,0.00012278,2]
[324927984,1714426241324,-500.0,0.00012278,2]
[324927985,1714426241334,-500.0,0.00012278,2]
[324927986,1714426241343,-979.65,0.00012278,2]
[324927987,1714426241353,-500.0,0.00012278,2]
[324927988,1714426241362,-500.0,0.00012278,2]
[324927989,1714426241371,-637.3,0.00012278,2]
[324927990,1714426241380,-585.91,0.00012278,2]
[324927991,1714426241542,-508.74,0.00012278,2]
[324927992,1714426241553,-2084.53,0.00012278,2]
[324927993,1714426241562,-925.41,0.00012278,2]
[324927994,1714426241571,-500.0,0.00012278,2]
[324927995,1714426241581,-613.3,0.00012278,2]
[324927996,1714426241590,-2584.05,0.00012278,2]
[324927997,1714426241599,-500.0,0.00012278,2]
[324927998,1714426241609,-151.0,0.00012278,2]
[324927999,1714426241618,-528.71344429,0.00012307,2]
[324928000,1714426241628,-1294.55623512,0.00012348,2]
[324928001,1714426241637,-339.89896657,0.00012384,2]
[324928002,1714426241646,-500.0,0.00012394,2]
[324928003,1714426241655,-500.0,0.00012394,2]
[324928004,1714426241665,-1743.74,0.00012394,2]
[324928005,1714426241673,-500.0,0.00012394,2]
[324928006,1714426241683,-536.28,0.00012394,2]
[324928007,1714426241692,-500.0,0.00012394,2]
[324928008,1714426241700,-708.32,0.00012394,2]
[324928009,1714426241710,-674.31,0.00012394,2]
[324928010,1714426241719,-500.0,0.00012394,2]
[324928011,1714426241729,-500.0,0.00012394,2]
[324928012,1714426241739,-777.47,0.00012394,2]
[324928013,1714426241748,-613.71,0.00012394,2]
[324928014,1714426241763,-505.36,0.00012394,2]
[324928015,1714426241772,-699.42,0.00012394,2]
[324928016,1714426241781,-500.0,0.00012394,2]
[324928017,1714426241791,-1113.99,0.00012394,2]
[324928018,1714426241801,-1054.51,0.00012394,2]
[324928019,1714426241810,-2351.8,0.00012394,2]
[324928020,1714426241819,-1313.75,0.00012394,2]
[324928021,1714426241829,-1074.3,0.00012394,2]
[324928022,1714426241838,-1024.31,0.00012394,2]
[324928023,1714426241847,-758.16,0.00012394,2]
[324928024,1714426241857,-905.43,0.00012394,2]
[324928025,1714426241866,-987.71,0.00012394,2]
[324928026,1714426241876,-879.29,0.00012394,2]
[324928027,1714426241885,-500.0,0.00012394,2]
[324928028,1714426241895,-569.28,0.00012394,2]
[324928029,1714426241905,-798.61,0.00012394,2]
[324928030,1714426241915,-2277.69,0.00012394,2]
[324928031,1714426241924,-1762.1,0.00012394,2]
[324928032,1714426241933,-2510.59,0.00012394,2]
[324928033,1714426241942,-2295.63,0.00012394,2]
[324928034,1714426241952,-612.14,0.00012394,2]
[324928035,1714426241961,-2645.36,0.00012394,2]
[324928036,1714426241971,-876.5,0.00012394,2]
[324928037,1714426241981,-500.0,0.00012394,2]
[324928038,1714426241992,-12616.9131787,0.000124,2]
[324928039,1714426242001,-1000.0,0.00012406,2]
[324928040,1714426242010,-528.71344429,0.00012406,2]
[324928041,1714426242020,-2500.000005,0.00012411,2]
[324928042,1714426242029,-500.0,0.00012452,2]
[324928043,1714426242039,-500.0,0.00012452,2]
[324928044,1714426242048,-642.86,0.00012452,2]
[324928045,1714426242057,-525.15,0.00012452,2]
[324928046,1714426242066,-500.0,0.00012452,2]
[324928047,1714426242076,-500.0,0.00012452,2]
[324928048,1714426242085,-581.25,0.00012452,2]
[324928049,1714426242094,-500.0,0.00012452,2]
[324928050,1714426242104,-500.0,0.00012452,2]
[324928051,1714426242115,-777.11,0.00012452,2]
[324928052,1714426242124,-1108.04,0.00012452,2]
[324928053,1714426242133,-1012.8,0.00012452,2]
[324928054,1714426242142,-500.0,0.00012452,2]
[324928055,1714426242152,-500.0,0.00012452,2]
[324928056,1714426242162,-913.15,0.00012452,2]
[324928057,1714426242172,-500.0,0.00012452,2]
[324928058,1714426242180,-592.01,0.00012452,2]
[324928059,1714426242188,-500.0,0.00012452,2]
[324928060,1714426242198,-1608.13,0.00012452,2]
[324928061,1714426242207,-500.0,0.00012452,2]
[324928062,1714426242216,-1263.57,0.00012452,2]
[324928063,1714426242225,-816.78,0.00012452,2]
[324928065,1714426242234,-542.27,0.00012452,2]
[324928067,1714426242243,-619.89,0.00012452,2]
[324928069,1714426242252,-500.0,0.00012452,2]
[324928071,1714426242261,-815.42,0.00012452,2]
[324928073,1714426242271,-1966.55,0.00012452,2]
[324928075,1714426242281,-891.94,0.00012452,2]
[324928077,1714426242290,-1801.77,0.00012452,2]
[324928079,1714426242299,-1034.24,0.00012452,2]
[324928081,1714426242308,-1174.22,0.00012452,2]
[324928083,1714426242318,-500.0,0.00012452,2]
[324928085,1714426242327,-528.71344429,0.00012505,2]
[324928087,1714426242337,-500.0,0.00012552,2]
[324928090,1714426242347,-500.0,0.00012552,2]
[324928093,1714426242356,-500.0,0.00012552,2]
[324928096,1714426242366,-979.65,0.00012552,2]
[324928100,1714426242375,-500.0,0.00012552,2]
[324928104,1714426242385,-500.0,0.00012552,2]
[324928108,1714426242394,-637.3,0.00012552,2]
[324928111,1714426242404,-585.91,0.00012552,2]
[324928114,1714426242413,-508.74,0.00012552,2]
[324928116,1714426242423,-2084.53,0.00012552,2]
[324928118,1714426242433,-925.41,0.00012552,2]
[324928119,1714426242442,-500.0,0.00012552,2]
[324928120,1714426242451,-613.3,0.00012552,2]
[324928121,1714426242461,-2584.05,0.00012552,2]
[324928122,1714426242470,-167.301119,0.00012552,2]
[324928123,1714426242479,-500.0,0.00012552,2]
[324928124,1714426242488,-233.6301,0.00012599,2]
[324928126,1714426242498,-528.71344429,0.00012604,2]
[324928128,1714426242507,-807.0,0.00012606,2]
[324928129,1714426242516,-1860.0,0.00012606,2]
[324928130,1714426242525,-432.467,0.00012606,2]
[324928131,1714426242535,-610.0,0.00012606,2]
[324928132,1714426242544,-208.0,0.00012606,2]
[324928133,1714426242554,-310.034,0.00012606,2]
[324928134,1714426242563,-443.0,0.00012606,2]
[324928135,1714426242573,-214.0,0.00012606,2]
[324928136,1714426242583,-151.0,0.00012606,2]
[324928137,1714426242592,-151.0,0.00012606,2]
[324928138,1714426242602,-1394.0,0.00012606,2]
[324928139,1714426242615,-2290.0,0.00012606,2]
[324928140,1714426242625,-970.0,0.00012606,2]
[324928141,1714426242635,-462.0,0.00012606,2]
[324928142,1714426242645,-2296.0,0.00012606,2]
[324928143,1714426242655,-1055.0,0.00012606,2]
[324928144,1714426242666,-192.19193026,0.00012626,2]
[324928145,1714426242676,-150.0,0.00012658,2]
[324928146,1714426242687,-500.0,0.00012668,2]
[324928147,1714426242696,-500.0,0.00012668,2]
[324928148,1714426242706,-1743.74,0.00012668,2]
[324928149,1714426242716,-500.0,0.00012668,2]
[324928150,1714426242726,-536.28,0.00012668,2]
[324928151,1714426242736,-500.0,0.00012668,2]
[324928152,1714426242746,-708.32,0.00012668,2]
[324928153,1714426242761,-674.31,0.00012668,2]
[324928154,1714426242770,-500.0,0.00012668,2]
[324928155,1714426242780,-500.0,0.00012668,2]
[324928156,1714426242791,-777.47,0.00012668,2]
[324928157,1714426242801,-613.71,0.00012668,2]
[324928158,1714426242811,-505.36,0.00012668,2]
[324928159,1714426242820,-699.42,0.00012668,2]
[324928160,1714426242832,-500.0,0.00012668,2]
[324928161,1714426242841,-1113.99,0.00012668,2]
[324928162,1714426242852,-1054.51,0.00012668,2]
[324928163,1714426242862,-2351.8,0.00012668,2]
[324928164,1714426242871,-1313.75,0.00012668,2]
[324928165,1714426242882,-1074.3,0.00012668,2]
[324928167,1714426242891,-1024.31,0.00012668,2]
[324928169,1714426242901,-758.16,0.00012668,2]
[324928170,1714426242911,-905.43,0.00012668,2]
[324928171,1714426242923,-987.71,0.00012668,2]
[324928172,1714426242932,-879.29,0.00012668,2]
[324928173,1714426242942,-500.0,0.00012668,2]
[324928174,1714426242952,-569.28,0.00012668,2]
[324928175,1714426242961,-798.61,0.00012668,2]
[324928176,1714426242971,-2277.69,0.00012668,2]
[324928177,1714426242981,-1762.1,0.00012668,2]
[324928178,1714426242991,-2510.59,0.00012668,2]
[324928179,1714426243001,-2295.63,0.00012668,2]
[324928180,1714426243012,-612.14,0.00012668,2]
[324928181,1714426243022,-2645.36,0.00012668,2]
[324928182,1714426243032,-876.5,0.00012668,2]
[324928183,1714426243042,-500.0,0.00012668,2]
[324928184,1714426243052,-754.41,0.00012674,2]
[324928185,1714426243061,-150.0,0.00012693,2]
[324928186,1714426243074,-528.71344429,0.00012702,2]
[324928187,1714426243083,-150.0,0.00012708,2]
[324928188,1714426243092,-460.18480661,0.00012726,2]
[324928189,1714426243102,-500.0,0.00012726,2]
[324928190,1714426243111,-642.86,0.00012726,2]
[324928191,1714426243121,-500.0,0.00012726,2]
[324928192,1714426243132,-500.0,0.00012726,2]
[324928193,1714426243142,-581.25,0.00012726,2]
[324928194,1714426243151,-500.0,0.00012726,2]
[324928195,1714426243161,-500.0,0.00012726,2]
[324928196,1714426243172,-777.11,0.00012726,2]
[324928197,1714426243181,-1108.04,0.00012726,2]
[324928198,1714426243190,-1012.8,0.00012726,2]
[324928199,1714426243199,-500.0,0.00012726,2]
[324928200,1714426243209,-500.0,0.00012726,2]
[324928201,1714426243218,-913.15,0.00012726,2]
[324928202,1714426243227,-500.0,0.00012726,2]
[324928203,1714426243236,-592.01,0.00012726,2]
[324928204,1714426243246,-500.0,0.00012726,2]
[324928205,1714426243255,-1608.13,0.00012726,2]
[324928206,1714426243265,-500.0,0.00012726,2]
[324928207,1714426243274,-1263.57,0.00012726,2]
[324928208,1714426243284,-816.78,0.00012726,2]
[324928209,1714426243293,-542.27,0.00012726,2]
[324928210,1714426243303,-619.89,0.00012726,2]
[324928211,1714426243312,-500.0,0.00012726,2]
[324928212,1714426243322,-815.42,0.00012726,2]
[324928213,1714426243331,-1966.55,0.00012726,2]
[324928214,1714426243341,-891.94,0.00012726,2]
[324928215,1714426243350,-1801.77,0.00012726,2]
[324928216,1714426243359,-1034.24,0.00012726,2]
[324928217,1714426243369,-1174.22,0.00012726,2]
[324928218,1714426243378,-500.0,0.00012726,2]
[324928219,1714426243387,-151.0,0.00012726,2]
[324928220,1714426243397,-150.0,0.00012731,2]
[324928221,1714426243407,-1051.26367605,0.0001274,2]